bitfinex/quotes_ETHUSD_20241022
["timestamp","ask_amount","ask_price","bid_price","bid_amount"]
[1729600752583,4.63323,2626.3,2626.0,0.06453024]
[1729600752740,0.8256,2626.3,2626.0,1.08486668]
[1729600753051,0.8156,2626.3,2626.0,1.08486668]
[1729600753443,4.62331,2626.3,2626.0,1.08486668]
[1729600753973,4.63331,2626.3,2626.0,1.08486668]
[1729600754873,3.8078,2626.2,2626.0,1.08486668]
[1729600755188,0.8256,2626.3,2626.0,1.08486668]
[1729600755471,8.44098,2626.3,2626.0,1.08486668]
[1729600756836,0.02,2626.5,2626.0,4.89292668]
[1729600757039,3.80759,2626.4,2626.1,0.86258426]
[1729600757264,3.80759,2626.4,2626.0,3.87259024]
[1729600757473,3.80759,2626.4,2626.2,0.06468759]
[1729600757660,3.80759,2626.4,2626.1,0.06476326]
[1729600757858,3.80759,2626.4,2626.3,0.06461193]
[1729600758079,3.82737,2626.5,2626.2,0.06468759]
[1729600758279,3.82737,2626.5,2626.3,0.06461193]
[1729600758484,7.6348,2626.5,2626.3,0.06461193]
[1729600758690,3.82737,2626.5,2626.1,3.80789]
[1729600758899,3.82737,2626.5,2626.4,0.06453628]
[1729600759048,3.82737,2626.5,2626.1,4.569484]
[1729600759257,3.82737,2626.5,2626.4,0.06453628]
[1729600759472,3.82737,2626.5,2626.1,3.80786]
[1729600759787,3.82737,2626.5,2626.0,3.80805]
[1729600759995,3.82737,2626.5,2626.1,3.87267326]
[1729600760156,3.82737,2626.5,2626.1,0.06476326]
[1729600761099,3.82737,2626.5,2626.1,0.83285459]
[1729600762265,3.80756,2626.4,2626.1,0.83285459]
[1729600762483,3.80765,2626.3,2626.1,0.83285459]
[1729600762796,3.80756,2626.4,2626.1,0.83285459]
[1729600763005,0.02,2626.5,2626.2,4.59035]
[1729600763168,0.01,2626.5,2626.3,0.92311146]
[1729600763372,0.01,2626.5,2626.4,0.06439857]
[1729600764703,3.81718,2626.7,2626.4,0.06439857]
[1729600765493,3.81713,2626.7,2626.4,0.06439857]
[1729600765685,7.62428,2626.7,2626.4,0.06439857]
[1729600766261,7.62427,2626.7,2626.4,0.06439857]
[1729600766465,3.81727,2626.6,2626.4,0.06439857]
[1729600768782,3.81727,2626.6,2626.2,4.59037]
[1729600768984,3.81727,2626.6,2626.3,0.06447422]
[1729600769184,3.81727,2626.6,2626.2,0.839831]
[1729600769414,3.81727,2626.6,2626.3,0.06447422]
[1729600769821,3.81727,2626.6,2626.2,3.80776]
[1729600770024,3.81727,2626.6,2626.4,0.06439857]
[1729600770188,3.81727,2626.6,2626.3,0.06447422]
[1729600770383,3.81727,2626.6,2626.2,3.80776]
[1729600770625,3.81727,2626.6,2626.3,0.06447422]
[1729600771088,3.81727,2626.6,2626.2,4.569326]
[1729600771289,3.81727,2626.6,2626.4,0.06439857]
[1729600771591,3.81727,2626.6,2626.5,0.06432292]
[1729600771791,0.01,2626.6,2626.3,3.80763]
[1729600772104,0.01,2626.6,2626.4,0.06439857]
[1729600772624,0.01,2626.7,2626.4,4.67230857]
[1729600774186,0.03279601,2627.0,2626.6,3.80707]
[1729600774381,3.82674,2627.0,2626.7,0.44483275]
[1729600774608,3.82674,2627.0,2626.7,0.06412575]
[1729600774813,3.82674,2627.0,2626.5,3.80732]
[1729600775013,3.82674,2627.0,2626.8,0.06397085]
[1729600775199,3.82674,2627.0,2626.6,3.80719]
[1729600775425,0.02,2627.0,2626.7,0.06404648]
[1729600776103,3.82663,2627.0,2626.7,0.06404648]
[1729600776319,4.57741,2626.8,2626.7,0.06404648]
[1729600776647,0.7705,2626.8,2626.3,3.80755]
[1729600776832,3.80706,2626.7,2626.4,4.463785]
[1729600777037,7.61421,2626.7,2626.4,4.463785]
[1729600777225,7.61421,2626.7,2626.4,0.463785]
[1729600777545,3.80706,2626.7,2626.4,0.463785]
[1729600777934,3.80706,2626.7,2626.2,4.63806]
[1729600778132,3.80706,2626.7,2626.3,7.80756]
[1729600778530,0.02,2626.6,2626.3,4.0]
[1729600778830,3.82721,2626.6,2626.1,3.80779]
[1729600779040,3.80734,2626.5,2626.2,0.455799]
[1729600779558,0.02,2626.6,2626.2,0.455799]
[1729600779759,3.82723,2626.6,2626.2,0.455799]
[1729600779964,3.82723,2626.6,2626.1,3.80779]
[1729600780262,3.80735,2626.5,2626.1,7.61562]
[1729600780459,0.02,2626.6,2626.1,7.61562]
[1729600780622,3.82722,2626.6,2626.2,3.80777]
[1729600781223,3.82722,2626.6,2626.1,3.80779]
[1729600781423,3.82722,2626.6,2626.2,0.455799]
[1729600781824,3.80736,2626.5,2626.2,0.455799]
[1729600782871,3.80736,2626.5,2626.0,4.55824]
[1729600783039,3.80755,2626.4,2626.0,4.55824]
[1729600783219,3.81755,2626.4,2626.0,4.55824]
[1729600783565,0.01,2626.4,2626.0,4.55824]
[1729600783725,0.01,2626.4,2626.1,3.80791]
[1729600783939,0.01,2626.4,2626.0,4.55825]
[1729600784240,0.01,2626.4,2626.1,1.20963954]
[1729600784464,3.8175,2626.4,2626.1,1.20963954]
[1729600785282,7.6251,2626.4,2626.1,1.20963954]
[1729600785579,3.8175,2626.4,2626.1,1.20963954]
[1729600788970,0.01,2626.4,2626.1,1.20963954]
[1729600789573,0.01,2626.4,2626.2,0.90176295]
[1729600790144,0.01,2626.7,2626.2,4.70946295]
[1729600790374,0.01,2626.8,2626.4,3.80739]
[1729600790761,0.01,2626.9,2626.5,3.80722]
[1729600790960,3.81664,2627.0,2626.5,3.80722]
[1729600791163,0.01,2627.0,2626.6,0.464476]
[1729600791401,0.01,2627.0,2626.7,0.06386432]
[1729600793131,3.81664,2627.0,2626.7,0.06386432]
[1729600794029,0.01,2627.0,2626.7,0.06386432]
[1729600794227,3.8165,2627.1,2626.7,0.87616432]
[1729600794405,0.01,2627.0,2626.7,0.87616432]
[1729600794606,0.01,2627.0,2626.7,5.57111135]
[1729600795329,0.01,2627.0,2626.7,1.76406135]
[1729600796328,3.8165,2627.1,2626.7,1.76406135]
[1729600796845,3.8063,2627.3,2626.8,3.88295377]
[1729600796846,3.8163,2627.3,2626.8,3.88295377]
[1729600796993,0.01,2627.3,2627.0,3.80661]
[1729600797194,0.01,2627.3,2627.1,0.06323648]
[1729600797394,3.8162,2627.3,2626.9,0.96470151]
[1729600797643,3.80636,2627.2,2627.0,0.06331209]
[1729600798050,0.01,2627.3,2627.1,0.8155]
[1729600798342,3.80563,2627.7,2627.2,7.68871276]
[1729600798509,4.62287,2627.8,2627.3,7.61224]
[1729600798706,4.62287,2627.8,2627.5,4.56858]
[1729600798707,0.01,2627.8,2627.5,4.56858]
[1729600798948,4.60174,2628.0,2627.5,4.56858]
[1729600799146,4.60174,2628.0,2627.6,3.86846672]
[1729600799352,8.40703,2628.0,2627.6,0.06271672]
[1729600799561,3.80541,2627.9,2627.6,0.06271672]
[1729600800289,3.8056,2627.7,2627.6,0.06271672]
[1729600800575,0.7856,2627.7,2627.2,3.80631]
[1729600800785,3.80575,2627.6,2627.3,0.06294349]
[1729600801080,3.80575,2627.6,2627.2,4.842017]
[1729600801242,3.80591,2627.5,2627.4,0.06286789]
[1729600801444,3.80591,2627.5,2627.3,0.06294349]
[1729600801772,3.81575,2627.6,2627.4,0.06286789]
[1729600801977,3.81575,2627.6,2627.2,4.0]
[1729600802151,3.81575,2627.6,2627.3,0.06294349]
[1729600802353,3.81575,2627.6,2627.2,0.861395]
[1729600802780,3.81575,2627.6,2627.3,0.06294349]
[1729600803088,7.63163,2627.6,2627.2,0.861395]
[1729600803258,3.82575,2627.6,2627.4,0.06286789]
[1729600803457,3.82575,2627.6,2627.3,0.06283926]
[1729600803661,3.82575,2627.6,2627.5,0.06271726]
[1729600803909,3.80589,2627.5,2627.4,0.06279285]
[1729600804201,0.02,2627.6,2627.2,0.861395]
[1729600804501,3.82578,2627.6,2627.2,0.861395]
[1729600805298,3.82578,2627.6,2627.1,4.61389]
[1729600805505,0.02,2627.6,2627.1,4.61389]
[1729600805687,3.82576,2627.6,2627.1,4.61389]
[1729600806298,3.82576,2627.6,2627.2,0.06293571]
[1729600808301,7.61193,2627.5,2627.2,0.06293571]
[1729600808508,7.6119,2627.5,2627.2,0.06293571]
[1729600808657,0.02,2627.6,2626.7,3.72999541]
[1729600808658,3.80658,2627.1,2626.7,3.72999541]
[1729600808860,3.80658,2627.1,2626.6,6.07536546]
[1729600809080,3.80658,2627.1,2626.7,4.0]
[1729600809306,3.80662,2627.0,2626.7,4.0]
[1729600809514,0.01,2626.8,2626.6,1.50184546]
[1729600809792,0.8329,2626.8,2626.5,3.80734]
[1729600809979,0.01,2626.8,2626.5,4.647986]
[1729600810220,0.02,2626.8,2626.5,4.647986]
[1729600810378,0.01,2626.8,2626.5,4.647986]
[1729600810578,0.02,2626.8,2626.5,4.647986]
[1729600811584,0.01,2626.8,2626.5,4.647986]
[1729600811920,0.01,2626.8,2626.4,0.86774116]
[1729600811921,0.02,2626.8,2626.6,0.07614107]
[1729600812225,3.0,2627.3,2626.0,1.50184546]
[1729600812226,3.80741,2626.5,2626.0,9.11783546]
[1729600812518,3.80761,2626.4,2626.2,4.0]
[1729600812722,4.60762,2626.4,2626.2,4.0]
[1729600813518,3.80763,2626.3,2626.2,4.0]
[1729600813966,4.6275,2626.4,2625.7,4.60568]
[1729600813967,3.80778,2626.2,2625.7,4.60568]
[1729600814222,3.80778,2626.2,2625.8,4.841424]
[1729600814783,3.80801,2626.1,2625.8,4.841424]
[1729600814984,3.80801,2626.1,2625.8,0.841424]
[1729600815283,3.80809,2626.0,2625.6,3.80856]
[1729600815509,3.80836,2625.8,2625.7,4.0]
[1729600815684,0.8019,2625.9,2625.7,4.0]
[1729600816026,4.61013,2625.9,2625.7,4.0]
[1729600816185,4.61013,2625.9,2625.5,3.80877]
[1729600816386,4.61013,2625.9,2625.5,4.651664]
[1729600817128,4.61013,2625.9,2625.5,0.842894]
[1729600817295,3.80836,2625.8,2625.5,0.842894]
[1729600817492,0.01,2625.8,2625.5,0.842894]
[1729600819629,3.81839,2625.8,2625.5,0.842894]
[1729600819831,0.01,2625.8,2625.5,0.842894]
[1729600821205,0.01,2625.8,2625.6,0.0647092]
[1729600822103,0.02,2626.0,2625.6,0.69363104]
[1729600822330,0.02,2626.0,2625.6,4.42604152]
[1729600822739,0.02,2626.0,2625.7,3.80849]
[1729600823118,0.02,2626.0,2625.8,0.06455782]
[1729600823331,4.61421,2625.9,2625.8,0.06455782]
[1729600823508,0.806,2625.4,2625.0,1.7819]
[1729600823847,4.61495,2625.4,2625.1,0.06508776]
[1729600824046,3.8091,2625.3,2625.1,0.06508776]
[1729600824621,3.82923,2625.2,2625.1,0.06508776]
[1729600825408,3.80937,2625.1,2625.0,1.0]
[1729600825608,3.80937,2625.1,2625.0,1.06568923]
[1729600828347,0.01,2625.2,2625.0,1.06568923]
[1729600828562,0.01,2625.2,2625.0,4.87513923]
[1729600828863,0.826,2625.4,2625.1,0.48751392]
[1729600829354,0.02,2625.4,2625.2,0.06564325]
[1729600829550,0.01,2625.4,2625.2,0.06564325]
[1729600829755,0.02,2625.4,2625.2,0.06564325]
[1729600829953,0.02,2625.4,2625.2,1.06262597]
[1729600831150,3.80908,2625.3,2625.2,1.06262597]
[1729600831353,3.80908,2625.3,2625.2,0.06564325]
[1729600831653,0.01,2625.4,2625.3,0.7891]
[1729600831852,0.01,2625.4,2625.3,0.85508083]
[1729600832225,0.01,2625.6,2625.3,0.85508083]
[1729600832226,0.02,2625.6,2625.3,0.7891]
[1729600832555,0.02,2625.6,2625.3,4.59817]
[1729600832966,0.01,2624.6,2623.7,2.96848327]
[1729600833110,11.11417593,2623.8,2623.7,2.96848327]
[1729600833312,10.55417593,2623.8,2623.7,2.96848327]
[1729600833540,6.82126,2623.8,2623.7,2.96848327]
[1729600833741,3.89743662,2623.8,2623.7,2.96848327]
[1729600835455,7.63035255,2623.8,2623.7,2.96848327]
[1729600838475,3.82126,2623.8,2623.7,2.96848327]
[1729600841088,0.01,2623.8,2623.7,2.96848327]
[1729600841379,3.88743662,2623.8,2623.7,2.96848327]
[1729600841878,3.81126,2623.8,2623.7,2.96848327]
[1729600842081,3.89743662,2623.8,2623.7,0.1256069]
[1729600848172,3.82126,2623.8,2623.7,0.1256069]
[1729600848372,0.01,2623.9,2623.7,0.1256069]
[1729600848573,3.82123,2623.9,2623.7,0.1256069]
[1729600850805,7.63244,2623.9,2623.7,0.1256069]
[1729600850964,3.89738662,2623.9,2623.7,0.1256069]
[1729600851169,7.70861662,2623.9,2623.7,0.1256069]
[1729600851366,3.89738662,2623.9,2623.7,0.1256069]
[1729600851959,3.82121,2623.9,2623.7,0.1256069]
[1729600852811,3.82112,2623.9,2623.7,0.1256069]
[1729600853302,3.82112,2623.9,2623.7,0.0536069]
[1729600854028,3.82114,2623.9,2623.7,0.0536069]
[1729600855630,7.63234,2623.9,2623.7,0.0536069]
[1729600855791,3.82114,2623.9,2623.7,0.0536069]
[1729600856219,3.88743662,2623.8,2623.7,0.0536069]
[1729600856606,3.89743662,2623.8,2623.7,0.0536069]
[1729600856786,8.23633662,2623.8,2623.7,0.0536069]
[1729600856993,0.01,2622.7,2622.6,3.59664881]
[1729600857221,7.56577593,2622.7,2622.6,3.0]
[1729600857498,3.90903662,2622.7,2622.6,3.0]
[1729600857907,10.64195255,2622.7,2622.6,3.0]
[1729600858206,0.01,2621.9,2621.4,0.59673591]
[1729600858405,3.55,2622.6,2621.8,0.7916]
[1729600858406,3.83367,2622.2,2621.8,0.7916]
[1729600858631,3.81381,2622.1,2621.8,0.7916]
[1729600858838,3.81376,2622.1,2621.8,0.7916]
[1729600859132,0.02,2622.2,2621.8,4.60567]
[1729600859340,3.83359,2622.2,2621.7,0.3]
[1729600859554,0.07617662,2622.4,2621.9,0.7993]
[1729600859712,3.89933662,2622.5,2621.9,0.7993]
[1729600860035,0.01,2622.2,2622.0,0.461337]
[1729600860240,0.01,2622.4,2622.0,0.461337]
[1729600860391,0.01,2622.4,2622.1,3.81365]
[1729600860599,0.01,2622.6,2622.2,3.81357]
[1729600860937,0.01,2622.6,2622.1,3.81365]
[1729600861110,0.01,2622.6,2622.3,3.81342]
[1729600861435,0.01,2622.6,2622.2,4.2410887]
[1729600861796,0.01,2622.6,2622.2,4.2409787]
[1729600862231,0.09617662,2622.8,2622.3,3.81343]
[1729600862396,0.09617662,2622.8,2622.2,4.2409787]
[1729600862397,0.01,2622.6,2622.2,8.0544887]
[1729600862722,0.01,2622.8,2622.5,3.81306]
[1729600862928,0.01,2622.8,2622.5,0.7832]
[1729600863247,0.0228407,2623.0,2622.8,3.81264]
[1729600863437,0.01,2623.2,2622.8,3.8126]
[1729600863649,0.01,2623.2,2622.6,0.07625394]
[1729600863650,0.01,2623.2,2622.9,3.81244]
[1729600863943,0.01,2623.2,2623.0,3.81242]
[1729600864293,0.07617662,2623.5,2623.0,0.762486]
[1729600864294,0.01,2623.4,2623.0,0.762486]
[1729600864494,0.02,2623.6,2623.4,3.81176]
[1729600864748,0.08617662,2623.8,2623.4,3.81175]
[1729600864924,0.01,2623.7,2623.4,3.81175]
[1729600865127,0.01,2623.7,2623.4,7.62352]
[1729600865324,3.8111,2624.0,2623.1,0.8187]
[1729600865325,0.02,2624.0,2623.5,3.81169]
[1729600865530,0.02,2624.0,2623.7,3.81134]
[1729600865855,0.09617662,2624.2,2623.7,3.81141]
[1729600866137,0.02,2624.2,2623.8,3.81126]
[1729600866340,0.02,2624.2,2623.9,3.81111]
[1729600867918,0.01,2623.9,2623.7,4.56491]
[1729600868533,0.07617662,2624.1,2623.7,3.81131]
[1729600868534,0.08617662,2624.1,2623.7,3.81131]
[1729600869544,0.08617662,2624.1,2623.8,3.81123]
[1729600869715,0.08617662,2624.1,2623.7,3.8114]
[1729600869914,0.01,2624.1,2623.9,3.81105]
[1729600870112,0.0328407,2624.3,2624.1,3.81083]
[1729600870328,0.01,2624.3,2624.1,3.81083]
[1729600870642,0.01,2624.2,2624.1,3.81083]
[1729600871340,0.01,2624.3,2624.2,3.81068]
[1729600873124,0.01,2624.3,2623.9,3.81101]
[1729600873334,0.01,2624.2,2624.0,7.62184]
[1729600873528,0.01,2624.2,2624.0,3.81088]
[1729600874124,0.01,2624.3,2624.1,3.81074]
[1729600874325,0.01,2624.3,2624.2,3.81068]
[1729600875925,0.01,2624.3,2624.0,3.81096]
[1729600875926,0.01,2624.2,2624.0,3.81096]
[1729600876355,0.01,2624.2,2623.8,7.62231]
[1729600876664,0.01,2624.1,2623.8,3.81112]
[1729600876850,0.08617662,2624.1,2623.8,3.81112]
[1729600877360,0.08617662,2624.1,2623.9,3.81108]
[1729600877770,0.08617662,2624.1,2623.8,3.81112]
[1729600877981,0.08617662,2624.1,2623.8,7.62228]
[1729600878294,0.08617662,2624.1,2624.0,3.81097]
[1729600878453,0.01,2624.1,2624.0,3.81097]
[1729600879104,0.01,2624.1,2623.9,3.81111]
[1729600879882,0.01,2624.1,2624.0,3.81097]
[1729600880089,0.08617662,2624.1,2624.0,3.81097]
[1729600880296,0.09617662,2624.4,2624.0,0.762206]
[1729600880585,3.0,2624.6,2624.2,3.81066]
[1729600880586,0.01,2624.6,2624.2,3.81066]
[1729600880744,0.01,2624.6,2624.5,3.81024]
[1729600880943,0.01,2624.7,2624.6,3.8101]
[1729600882286,0.8156,2624.6,2624.0,0.762206]
[1729600882487,0.01,2624.7,2624.4,3.81028]
[1729600882693,0.01,2624.7,2624.5,3.81017]
[1729600883392,0.01,2624.7,2624.6,3.8101]
[1729600883547,0.01,2624.7,2624.4,3.81032]
[1729600884404,0.01,2624.7,2624.4,3.81035]
[1729600884688,0.01,2624.7,2624.4,3.81037]
[1729600885676,0.01,2624.7,2624.4,7.62066]
[1729600885974,0.01,2624.7,2624.4,3.81029]
[1729600886789,0.01,2624.7,2624.4,7.62059]
[1729600887315,0.01,2624.7,2624.4,7.6206]
[1729600887811,0.01,2624.7,2624.4,3.81029]
[1729600887977,0.01,2624.7,2624.3,3.81052]
[1729600888180,0.01,2624.7,2624.3,3.81044]
[1729600888802,0.01,2624.7,2624.3,7.62087]
[1729600889008,0.01,2624.7,2624.3,3.81043]
[1729600889195,0.08617662,2624.8,2624.5,4.62244]
[1729600889396,0.01,2624.7,2624.5,0.8122]
[1729600890186,0.01,2624.7,2624.4,3.81031]
[1729600890521,3.61546352,2625.0,2624.4,0.783]
[1729600890680,0.8021,2625.5,2625.0,3.8094]
[1729600890681,4.61099,2625.5,2625.0,3.8094]
[1729600890881,0.8121,2625.5,2625.0,4.5924]
[1729600891079,0.8121,2625.5,2625.0,4.59245]
[1729600891313,0.8121,2625.5,2625.0,5.84881734]
[1729600891520,0.8121,2625.5,2625.0,0.783]
[1729600891730,0.8121,2625.5,2624.7,3.39977815]
[1729600891731,3.80915,2625.3,2624.7,4.60096]
[1729600892091,3.80901,2625.4,2624.8,3.8097]
[1729600892617,3.80894,2625.4,2624.8,3.80968]
[1729600892920,3.80894,2625.4,2624.9,3.80963]
[1729600893116,0.8121,2625.5,2624.8,3.80968]
[1729600893324,0.8121,2625.5,2624.9,3.80965]
[1729600893624,4.62096,2625.5,2624.8,3.80968]
[1729600893785,0.8121,2625.5,2624.9,3.80966]
[1729600894132,3.80898,2625.4,2624.7,0.7911]
[1729600894422,0.8121,2625.5,2624.9,3.80954]
[1729600894630,0.8121,2625.5,2624.7,1.59120082]
[1729600894631,0.8121,2625.5,2624.8,3.80979]
[1729600894919,0.8121,2625.5,2624.9,3.80966]
[1729600895123,0.8121,2625.5,2625.0,3.8095]
[1729600895501,0.01,2625.1,2624.6,3.80997]
[1729600895824,0.8235,2625.0,2624.6,3.80997]
[1729600896022,0.01,2624.9,2624.6,3.80997]
[1729600897624,0.01,2624.9,2624.4,5.31212546]
[1729600897831,3.81974,2624.9,2624.4,5.31212546]
[1729600898053,0.01,2624.9,2624.5,3.81024]
[1729600898544,0.01,2624.9,2624.6,3.81]
[1729600899252,0.01,2624.9,2624.5,3.81024]
[1729600899755,0.01,2624.9,2624.5,3.81016]
[1729600899933,0.01,2624.9,2624.5,3.81017]
[1729600900340,0.01,2624.9,2624.5,7.62032]
[1729600901019,0.01,2624.9,2624.7,3.80994]
[1729600901215,0.01,2624.9,2624.7,7.61981]
[1729600901544,0.01,2624.9,2624.7,3.80987]
[1729600901852,3.81968,2624.9,2624.5,3.81024]
[1729600902008,3.81967,2624.9,2624.5,3.81024]
[1729600902710,0.01,2624.9,2624.5,3.81016]
[1729600903541,3.81969,2624.9,2624.5,3.81016]
[1729600903749,3.81969,2624.9,2624.4,5.31222546]
[1729600903965,0.01,2624.7,2624.4,5.31222546]
[1729600904255,0.01,2624.7,2624.4,1.50184546]
[1729600904609,3.81997,2624.7,2624.4,1.50184546]
[1729600905442,3.81017,2624.6,2624.2,3.81068]
[1729600905618,0.7812,2624.5,2624.2,3.81068]
[1729600905818,0.7912,2624.5,2624.2,3.81068]
[1729600906641,0.7912,2624.5,2624.0,3.81093]
[1729600906980,0.7912,2624.5,2624.1,0.381093]
[1729600907185,3.81046,2624.4,2624.0,3.81095]
[1729600907675,4.60147,2624.5,2624.0,3.8109]
[1729600907879,0.7912,2624.5,2624.1,3.81073]
[1729600908028,0.7912,2624.5,2624.2,3.81067]
[1729600908221,0.01,2624.5,2624.3,3.81051]
[1729600908630,0.01,2624.5,2624.3,3.81046]
[1729600908837,0.01,2624.5,2624.3,4.191506]
[1729600909353,0.01,2624.5,2624.4,3.81039]
[1729600909557,0.01,2624.5,2624.3,4.191506]
[1729600910665,0.01,2624.5,2624.3,8.001906]
[1729600910950,0.01,2624.5,2624.3,4.191446]
[1729600911551,0.01,2624.5,2624.3,8.001896]
[1729600911743,0.01,2624.5,2624.3,4.191446]
[1729600912441,0.01,2624.5,2624.4,3.81039]
[1729600912630,0.01,2624.5,2624.3,8.001926]
[1729600912832,0.01,2624.5,2624.3,4.191446]
[1729600913027,0.01,2624.5,2624.4,3.81039]
[1729600913263,0.01,2624.7,2624.4,3.81039]
[1729600913557,0.01,2624.5,2624.4,3.81039]
[1729600915849,0.01,2624.8,2624.4,4.6105566]
[1729600916159,0.01,2624.8,2624.4,8.4208666]
[1729600917264,0.01,2624.8,2624.5,3.81023]
[1729600917621,0.01,2624.8,2624.6,3.81009]
[1729600917819,0.01,2624.8,2624.5,7.81022]
[1729600918145,0.01,2624.8,2624.5,9.16979726]
[1729600920945,3.80967,2624.9,2624.5,9.16979726]
[1729600921148,0.01,2624.8,2624.5,9.16979726]
[1729600922272,0.01,2624.8,2624.5,9.16977726]
[1729600922480,3.80998,2624.7,2624.5,4.0]
[1729600923576,3.81995,2624.8,2624.5,4.0]
[1729600923780,3.81991,2624.8,2624.5,4.0]
[1729600924162,3.81991,2624.8,2624.3,4.191576]
[1729600924563,3.81004,2624.7,2624.3,4.191576]
[1729600925184,0.01,2624.6,2624.3,4.191576]
[1729600925680,3.81991,2624.8,2624.3,4.191576]
[1729600925883,0.01,2624.6,2624.3,4.191576]
[1729600926763,0.01,2624.6,2624.3,4.191466]
[1729600926967,0.01,2624.6,2624.4,4.2294566]
[1729600927811,0.01,2624.6,2624.4,0.4191466]
[1729600928008,0.01,2624.8,2624.5,3.81024]
[1729600928810,3.81983,2624.8,2624.4,4.2295066]
[1729600929346,0.01,2624.8,2624.5,3.81018]
[1729600929499,0.01,2624.6,2624.5,3.81018]
[1729600929696,0.01,2624.6,2624.5,4.61414866]
[1729600929894,0.01,2624.6,2624.5,0.80396866]
[1729600930336,0.01,2624.6,2624.5,3.81024]
[1729600930910,0.01,2624.8,2624.6,3.81004]
[1729600931238,0.01,2624.8,2624.6,3.81002]
[1729600931411,0.01,2624.8,2624.5,4.7918]
[1729600931617,0.01,2624.8,2624.5,8.60201]
[1729600931922,0.01,2624.8,2624.5,9.843238]
[1729600932118,0.01,2624.8,2624.6,3.81008]
[1729600932339,0.01,2624.8,2624.5,9.843238]
[1729600932840,0.01,2624.6,2624.5,5.241228]
[1729600933554,0.7777,2624.6,2623.7,0.7856]
[1729600933696,0.7777,2624.6,2623.2,3.95027902]
[1729600933697,4.58861,2624.1,2623.9,4.0]
[1729600934048,3.81097,2624.0,2623.9,4.0]
[1729600935346,7.62273,2623.8,2623.3,4.59779]
[1729600935549,7.63273,2623.8,2623.4,4.60996355]
[1729600935748,3.82135,2623.8,2623.4,4.60996355]
[1729600936045,0.01,2623.8,2623.4,4.60996355]
[1729600936208,3.82132,2623.8,2623.4,4.60996355]
[1729600936643,3.82132,2623.8,2623.4,8.42180355]
[1729600936848,3.81141,2623.7,2623.5,1.30195036]
[1729600937623,3.81155,2623.6,2623.4,4.60996355]
[1729600937828,3.81141,2623.7,2623.4,4.60996355]
[1729600938360,4.6375,2623.7,2623.4,0.60996355]
[1729600938538,4.6375,2623.7,2623.2,1.50184546]
[1729600938722,4.6375,2623.7,2623.3,4.0]
[1729600938924,4.63749,2623.7,2623.3,4.0]
[1729600939279,4.63784,2623.4,2623.3,4.0]
[1729600939563,3.82211,2623.3,2622.4,11.02619815]
[1729600939745,3.82211,2623.3,2622.7,4.0]
[1729600940468,3.81239,2623.1,2622.7,4.0]
[1729600940667,3.81234,2623.1,2622.7,4.0]
[1729600940826,7.62473,2623.1,2622.7,4.0]
[1729600941029,3.81258,2622.9,2622.7,4.0]
[1729600941367,3.81256,2623.0,2622.7,4.0]
[1729600941743,3.81271,2622.8,2622.7,4.0]
[1729600942256,4.63865,2622.9,2622.7,4.0]
[1729600942633,3.81272,2622.8,2622.5,1.23908926]
[1729600942829,3.81272,2622.8,2622.3,5.82823532]
[1729600943058,0.826,2622.9,2622.4,4.0]
[1729600943228,3.81287,2622.7,2622.4,4.0]
[1729600943930,3.81272,2622.8,2622.3,5.23184087]
[1729600944542,4.6486,2622.9,2622.3,5.23184087]
[1729600944740,4.6486,2622.9,2622.4,0.52318409]
[1729600945059,8.46128,2622.9,2622.4,0.52318409]
[1729600945260,4.6486,2622.9,2622.4,0.52318409]
[1729600945466,3.8226,2622.9,2622.5,0.7758]
[1729600945687,0.01,2622.9,2622.5,0.7758]
[1729600946682,3.82258,2622.9,2622.5,1.4288825]
[1729600947370,3.82258,2622.9,2622.5,0.6530825]
[1729600951105,3.81279,2622.8,2622.5,0.6530825]
[1729600951400,3.82259,2622.9,2622.5,0.6530825]
[1729600951607,3.81276,2622.8,2622.5,0.6530825]
[1729600951758,0.01,2622.9,2622.5,0.6530825]
[1729600951963,3.82257,2622.9,2622.5,0.6530825]
[1729600952698,3.8223,2623.1,2622.6,0.8172]
[1729600954117,0.01,2623.1,2622.6,0.89345242]
[1729600954715,0.01,2623.1,2622.6,4.89345242]
[1729600954908,3.82234,2623.1,2622.7,0.55465349]
[1729600958927,3.82213,2623.3,2622.7,0.55465349]
[1729600959232,7.63417,2623.3,2622.9,0.8019]
[1729600959892,3.82208,2623.3,2622.9,0.8019]
[1729600962639,7.63415,2623.3,2622.9,0.8019]
[1729600962957,3.82207,2623.3,2622.9,0.8019]
[1729600963322,0.01,2623.3,2622.9,0.8019]
[1729600963719,0.01,2623.3,2623.0,0.461457]
[1729600964121,3.81181,2623.5,2623.1,0.07623788]
[1729600964122,0.01,2623.5,2623.1,0.07623788]
[1729600964432,3.81187,2623.4,2623.0,0.461457]
[1729600964835,3.8217,2623.5,2623.0,0.461457]
[1729600965233,3.8217,2623.5,2623.1,4.0]
[1729600965446,3.81199,2623.3,2623.1,4.0]
[1729600965644,3.81213,2623.2,2623.1,4.0]
[1729600966870,4.56413,2623.2,2623.1,4.0]
[1729600967165,3.81247,2623.0,2622.4,0.8222]
[1729600967460,3.81272,2622.8,2622.5,4.0]
[1729600967647,3.81272,2622.8,2622.5,5.00540409]
[1729600968439,3.81258,2622.9,2622.5,5.00540409]
[1729600968951,3.81287,2622.7,2622.5,5.00540409]
[1729600970333,3.813,2622.6,2622.5,4.0]